[Event "Romanian Rapid Open 2022"]
[Site "Sebes"]
[Date "2022.12.02"]
[Round "2.36"]
[White "Stefan, Iulia-Cristiana"]
[Black "Ceteras, Marius-Nicolae"]
[Result "0-1"]
[ECO "B24"]
[WhiteElo "1662"]
[BlackElo "2391"]
[Annotator "TA"]
[PlyCount "124"]
[EventDate "2022.12.02"]
[EventType "rapid"]
[EventCountry "ROU"]
[SourceTitle "playchess.com"]
[Source "ChessBase"]
[SourceQuality "1"]
[TimeControl "600+5"]

{[%evp 9,124,24,16,16,19,22,37,-3,0,0,0,-13,35,32,50,34,45,28,30,24,35,21,12,-28,17,14,45,47,37,34,29,7,12,0,5,-171,36,-20,0,0,0,-2,0,0,0,0,83,-121,-29,-112,-131,-109,-70,-181,-170,-268,-231,-177,58,-96,-79,-314,0,0,0,0,0,0,0,0,147,0,0,0,0,0,135,143,122,11,16,0,74,47,1061,62,113,0,85,0,175,0,12,12,14,0,100,0,445,0,0,0,0,0,29994,0,0,0,0,0,0,0,0,0,29983,29983,471]} 1. e4 {[%emt 0:00:03]} c5 {[%emt 0:00:00]} 2. Nc3 {[%emt 0:00:02]} Nc6 {[%emt 0:00:02]} 3. g3 {[%emt 0:00:01]} Rb8 {[%emt 0:00:00]} 4. Bg2 {[%emt 0:00:03]} b5 {[%emt 0:00:01]} 5. d3 {[%emt 0:00:02]} b4 {[%emt 0:00:01]} 6. Nd5 {[%emt 0:00:48] B24: Closed Sicilian: 3 g3 sidelines.} e6 {[%emt 0:00:02]} 7. Ne3 {[%emt 0:00:01]} g6 {[%emt 0:00:06]} 8. Nh3 {[%emt 0:00:10] White is slightly better.} Bg7 {[%emt 0:00:03]} 9. O-O {[%emt 0:00:09]} Nge7 {[%emt 0:00:00]} 10. f4 {[%emt 0:00:31]} f5 {[%emt 0:00:03]} (10... O-O $11) 11. e5 $14 {[%emt 0:00:23]} d5 {[%emt 0:00:19] Prevents Nc4.} 12. exd6 {[%emt 0:00:05]} Qxd6 {[%emt 0:00:02]} 13. Nc4 {[%emt 0:00:09]} Qc7 {[%emt 0:00:07]} 14. Ng5 {[%emt 0:00:22]} O-O {[%emt 0:00:02]} 15. Re1 {[%emt 0:00:25]} (15. Be3 {simplifies} Na5 16. Nxa5 Qxa5 17. a3) 15... Nd4 $1 {[%emt 0:00:12] [#]} 16. Ne5 $146 {[%emt 0:00:47]} (16. Be3 {simplifies} h6 17. Nf3 Nxf3+ 18. Bxf3 Ba6 19. Bf2) ({Predecessor:} 16. Bd2 Nec6 17. c3 bxc3 18. bxc3 h6 19. Nf3 Nxf3+ 20. Qxf3 Na5 21. Ne5 Rb2 22. Re2 {½-½ (48) Alonso Moyano,J (2341)-Martinez Fernandez,A (2318) Linares 2021}) 16... Nd5 {[%emt 0:01:01][%cal Ob4b3]} (16... Bb7 {keeps more tension.} 17. c3 Bxg2 18. Kxg2 bxc3 19. bxc3 Qb7+) 17. Bd2 {[%emt 0:00:36] Black must now prevent c3.} h6 {[%emt 0:02:33] Against c3} 18. Ngf3 {[%emt 0:00:09]} Nxf3+ {[%emt 0:00:02]} 19. Bxf3 {[%emt 0:00:24]} Kh7 {[%emt 0:00:03]} 20. Rb1 {[%emt 0:00:21]} a5 {[%emt 0:00:02]} 21. c3 {[%emt 0:00:22]} Re8 {[%emt 0:01:07]} 22. Nxg6 $2 {[%emt 0:06:02]} Ba6 $2 (22... bxc3 $1 $19 23. bxc3 Nxc3 24. Bxc3 Rxb1 25. Qxb1 Bxc3) 23. c4 {[%emt 0:00:00]} (23. Ne5 $1 $14) 23... Bd4+ {[%emt 0:00:27]} 24. Kg2 {[%emt 0:00:00]} Kxg6 {[%emt 0:00:02]} 25. Bh5+ {[%emt 0:00:00]} Kg7 {[%emt 0:00:02]} 26. Bxe8 {[%emt 0:00:20]} Rxe8 27. cxd5 {[%emt 0:00:05] And now Be3 would win.} Bb7 (27... Bxd3 $11 28. Rc1 Bxb2) 28. Qh5 $2 {[%emt 0:00:00]} (28. Be3 $1 $16 {and life is bright.}) 28... Qd8 {[%emt 0:00:14]} (28... Qd7 $17 29. Re5 Bxe5 30. fxe5 Qxd5+ 31. Kf2 Qg2+ 32. Ke1 Rh8) 29. Kh3 {[%emt 0:00:00] [#]} (29. Re5 $1 $11) 29... Qxd5 $1 $17 {[%emt 0:00:14][%mdl 64] ( -> ...Qg2+)} 30. Re2 {[%emt 0:00:00] Against Qg2+} (30. Qxe8 $2 Qg2+ 31. Kh4 Qxh2#) 30... Rf8 {[%emt 0:00:36][%cal Be8f8,Bf8f6,Bf6g6][%mdl 1056] Black has strong compensation.} 31. b3 {[%emt 0:00:00]} (31. Rf1 $1 $15) 31... Rf6 $1 $19 {[%emt 0:00:07]} 32. Rf1 {[%emt 0:00:00]} (32. Rbe1 {was worth a try.} Rg6 33. Bc1) 32... Rg6 {[%emt 0:00:04]} 33. Bc1 {[%emt 0:00:00]} a4 $2 {[%emt 0:00:41]} (33... Bc6 $1 $19) 34. bxa4 $2 {[%emt 0:00:03]} (34. Bb2 $1 $14) 34... Bc6 $1 $17 {[%emt 0:01:04]} 35. Qh4 $2 {[%emt 0:00:16] [#]} (35. a5 $17) 35... Bf6 $2 {[%emt 0:00:13] A strong pair of Bishops.} ({Black should try} 35... Qd7 $1 $19 {[%cal Rd7f7]} 36. Be3 Bf6) 36. Bb2 $1 $11 {[%emt 0:00:01]} Qxd3 {[%emt 0:00:10] Dancing on a razor blade.} (36... Bxb2 37. Qe7+ Kh8 38. Rxb2 $16) 37. Bxf6+ {[%emt 0:00:05]} Rxf6 {[%emt 0:00:01]} 38. Qh5 {[%emt 0:00:13]} Rg6 {[%emt 0:00:18]} 39. Rff2 {[%emt 0:00:06] Strongly threatening Rd2.} Bd5 {[%emt 0:00:47]} (39... Qd1 $11 40. Qxg6+ Kxg6 41. Rxe6+ Kh5 42. Rxc6 Qg1) 40. Qh4 {[%emt 0:00:06]} (40. Rd2 $16 Qa6 41. Qe2) 40... Rf6 {[%emt 0:00:34]} 41. Qh5 {[%emt 0:00:05]} c4 {[%emt 0:00:16]} 42. Qe8 {[%emt 0:00:09]} b3 {[%emt 0:00:37]} (42... Rf7 $11) 43. axb3 $16 {[%emt 0:00:05]} cxb3 {[%emt 0:00:01]} 44. Qe7+ {[%emt 0:00:02]} (44. Rd2 $16 Qe4 45. Rd1) 44... Rf7 $11 {[%emt 0:00:01]} 45. Qb4 {[%emt 0:00:09]} (45. Rd2 $5 {[%cal Re7f7]} Qxg3+ 46. hxg3 Rxe7 47. Rf1 $11) 45... Qd1 {[%emt 0:00:05]} (45... Rb7 $11 46. Qe1 Qd4) 46. Qd2 {[%emt 0:00:07]} Qb1 {[%emt 0:00:53][%mdl 8192]} (46... Qa1 $14) 47. Qd4+ $2 {[%emt 0:00:05]} (47. Re1 $18 Qxe1 48. Qxe1) 47... Kg6 {[%emt 0:00:06]} ({Black should play} 47... Kh7 $1 $14) 48. Qb2 {[%emt 0:00:05]} (48. a5 $16) 48... Qd3 {[%emt 0:00:05]} (48... Qd1 $11) 49. Qe5 {[%emt 0:00:05]} (49. Rd2 $16 Qe4 50. Rd4) 49... h5 $2 {[%emt 0:00:11]} (49... Qd1 $11 {and Black has nothing to worry.}) 50. Qe3 $2 {[%emt 0:00:03]} ({Better is} 50. Qh8 $18) 50... Qc4 {[%emt 0:00:12]} 51. Rd2 {[%emt 0:00:03]} Rb7 {[%emt 0:00:13]} 52. Qe5 {[%emt 0:00:09]} Qc6 {[%emt 0:00:09] [#]} (52... Qxa4 $11 {remains equal.} 53. Qd6 Kh7) 53. Qh8 {[%emt 0:00:04]} (53. Rf1 $1 $16) 53... Bf3 $2 {[%emt 0:00:13][%mdl 8192]} (53... Rg7 $11) 54. Rxf3 $2 {[%emt 0:00:05]} Qxf3 $18 {[%emt 0:00:01][%mdl 4096] Endgame KQR-KQR} 55. Qe8+ {[%emt 0:00:04]} Kf6 {[%emt 0:00:02]} ({Don't do} 55... Kg7 56. Qxe6 Qg4+ 57. Kg2 $16) 56. Qh8+ {[%emt 0:00:02]} Rg7 $2 {[%emt 0:00:03][%mdl 8192]} (56... Kg6 $11) 57. Qf8+ $2 {[%emt 0:00:03]} (57. Qh6+ {mates} Ke7 58. Qxg7+ Ke8 59. Qh8+ Ke7 60. Qd8+ Kf7 61. Rd7+ Kg6 62. Qg5#) 57... Kg6 $11 {[%emt 0:00:01][%cal Ob3b2]} 58. Qe8+ {[%emt 0:00:04]} (58. Qh8 $2 b2 59. Rxb2 h4 $19) 58... Kf6 {[%emt 0:00:01]} 59. Qf8+ {[%emt 0:00:02]} Kg6 {[%emt 0:00:28][%cal Ob3b2] Hoping for ...b2!} 60. Qe8+ {[%emt 0:00:02]} ({Avoid the trap} 60. Qh8 $2 b2 61. Rxb2 h4 $19) 60... Kh7 {[%emt 0:00:00][%cal Ob3b2] aiming for ...b2!} 61. Qxe6 {[%emt 0:00:07]} Rxg3+ $2 {[%emt 0:00:00][%mdl 8192]} 62. hxg3 {[%emt 0:00:05]} Qh1+ {[%emt 0:00:00][%mdl 32768] A wild game.   Weighted Error Value: White=0.65/Black=0.65. Loss on time!?} 0-1

[Event "Romanian Rapid Open 2022"]
[Site "Sebes"]
[Date "2022.12.02"]
[Round "2.37"]
[White "Burja-Udrea, Razvan-Andrei"]
[Black "Vrencian, Lehel"]
[Result "0-1"]
[ECO "B83"]
[WhiteElo "1365"]
[BlackElo "2226"]
[Annotator "TA"]
[PlyCount "103"]
[EventDate "2022.12.02"]
[EventType "rapid"]
[EventCountry "ROU"]
[SourceTitle "playchess.com"]
[Source "ChessBase"]
[SourceQuality "1"]
[TimeControl "600+5"]

{[%evp 12,103,25,8,10,0,0,-22,25,15,15,25,18,26,16,13,16,6,8,3,4,8,28,35,28,31,25,0,401,393,518,518,468,242,228,92,94,0,427,435,397,352,188,13,391,0,13,8,14,0,0,-118,-118,-239,-226,-181,-111,-111,-111,-111,-110,-127,-7,-104,-103,-834,-722,-12837,-12837,-12837,0,0,0,0,0,0,0,0,0,0,0,0,0,0,0,0,0,0,0,0,0,-12845,-12845,-12845]} 1. e4 {[%emt 0:00:03]} c5 {[%emt 0:00:01]} 2. Nf3 {[%emt 0:00:07]} e6 {[%emt 0:00:02]} 3. d4 {[%emt 0:00:12]} cxd4 {[%emt 0:00:01]} 4. Nxd4 {[%emt 0:00:02]} Nf6 {[%emt 0:00:02]} 5. Nc3 {[%emt 0:00:13]} d6 {[%emt 0:00:02]} 6. Be3 {[%emt 0:00:21]} Be7 {[%emt 0:00:14]} 7. Be2 {[%emt 0:00:18]} O-O {[%emt 0:00:09] [#] B83: Sicilian Scheveningen: 6 Be2, lines without ...a6.} 8. h4 $146 {[%emt 0:00:22][%cal Bh2h4,Bh4h5][%mdl 32]} ({Predecessor:} 8. f4 Nc6 9. Qd2 e5 10. Nb3 a5 11. a4 exf4 12. Bxf4 Be6 13. O-O-O Rc8 14. Kb1 Re8 15. Rhe1 Nb4 16. Bb5 Rf8 17. Bxd6 Bg4 18. Bxe7 Qxe7 {1-0 (33) So,W (2780)-Duda,J (2737) Chess.com INT 2018}) 8... Nc6 {[%emt 0:00:05]} 9. h5 {[%emt 0:00:48]} d5 {[%emt 0:00:36]} (9... h6 $142) 10. exd5 {[%emt 0:00:27]} Nxd5 {[%emt 0:00:16]} 11. Nxd5 {[%emt 0:00:03]} Qxd5 {[%emt 0:00:26]} 12. Nxc6 {[%emt 0:00:24]} (12. O-O {simplifies} Nxd4 13. Qxd4 Qxd4 14. Bxd4 Bd7 15. c3) 12... Qxc6 {[%emt 0:03:29]} 13. Bf3 {[%emt 0:00:03]} Qb5 {[%emt 0:00:29]} 14. Qe2 {[%emt 0:02:12]} Qxb2 {[%emt 0:00:23]} 15. O-O {[%emt 0:00:03]} h6 {[%emt 0:01:27]} 16. Rfd1 {[%emt 0:01:22]} Rd8 {[%emt 0:01:34] Prevents Bd4.} 17. Rxd8+ {[%emt 0:04:30]} Bxd8 18. Rd1 {[%emt 0:00:00]} Bf6 {[%emt 0:00:24]} 19. Be4 {[%emt 0:00:00]} Qe5 $2 {[%emt 0:00:51][%mdl 8192]} (19... Qxa2 $2 20. Qb5 $18) (19... e5 $11 {and Black is okay.}) 20. Bd4 $1 $18 {[%emt 0:00:00]} Qg5 {[%emt 0:00:13]} 21. Bxf6 {[%emt 0:00:00]} Qxf6 {[%emt 0:00:15]} 22. Qd3 {[%emt 0:00:00]} (22. Qd2 $142 {White threatens Qd8+ and mate.} g5 23. hxg6) 22... g5 {[%emt 0:00:38]} 23. Qb5 {[%emt 0:00:10]} (23. hxg6 $18 {and the rest is easy.} fxg6 24. Bxg6) 23... Qe7 {[%emt 0:00:06]} 24. Qc4 {[%emt 0:00:14]} (24. Qa5 $16 {aiming for Rd8+.} Kg7 25. Bf3 (25. Rd8 e5 $11)) 24... Bd7 $2 {[%emt 0:00:13][%mdl 8192]} (24... e5 $11 {and Black stays safe.}) 25. Qc7 $1 {[%emt 0:00:02]} Rd8 {[%emt 0:00:01]} 26. Qxb7 {[%emt 0:00:03]} Kf8 {[%emt 0:00:07]} 27. Qb2 $2 {[%emt 0:00:03]} ({Don't take} 27. Qxa7 $6 Be8 28. Qxe7+ Kxe7 29. Rxd8 Kxd8 $14) ({White has to play} 27. Qc7 $1 $18) 27... f6 $2 {[%emt 0:00:04][%mdl 8192] [#]} (27... e5 $11) 28. Bg6 $2 {[%emt 0:00:23]} (28. Qd4 $1 $18) 28... Bc6 $11 {[%emt 0:00:07]} 29. Rxd8+ {[%emt 0:00:00]} Qxd8 {[%emt 0:00:01][%mdl 4096] Endgame KQB-KQB} 30. Qa3+ {[%emt 0:00:00]} Qe7 {[%emt 0:00:00]} 31. Qxe7+ {[%emt 0:00:00]} (31. Qb3 $11) 31... Kxe7 {[%emt 0:00:01] KB-KB} 32. c3 {[%emt 0:00:00]} (32. g3 $17) 32... a5 {[%emt 0:00:05]} 33. Kf1 {[%emt 0:00:00]} Bb5+ {[%emt 0:00:12]} ({Better is} 33... Kd6 $19 {White must now prevent ...Bd5.} 34. f3 a4) 34. Ke1 $17 {[%emt 0:00:00]} Kd6 {[%emt 0:00:02]} 35. Kd2 {[%emt 0:00:00]} Kc5 {[%emt 0:00:01]} 36. Bf7 {[%emt 0:00:00]} e5 {[%emt 0:00:06]} (36... Bc6 $17 37. g3 Bd5) 37. g3 {[%emt 0:00:00]} (37. Be6 $1 $11) 37... f5 {[%emt 0:00:14]} 38. Ke3 $2 {[%emt 0:00:22][%mdl 8192] [#]} (38. a3 $17) 38... Bc4 $1 $19 {[%emt 0:00:08]} 39. Bxc4 Kxc4 {[%emt 0:00:01] KP-KP} 40. Kd2 {[%emt 0:00:03]} f4 $2 {[%emt 0:00:06]} ({Black should play} 40... a4 $19 41. f3 e4 42. fxe4 fxe4) 41. gxf4 $1 $11 {[%emt 0:00:04]} exf4 {[%emt 0:00:02]} (41... gxf4 $5 42. f3 $8 Kb5 $11) 42. f3 {[%emt 0:00:01]} a4 {[%emt 0:00:07]} 43. Kc2 $1 {[%emt 0:00:01]} Kd5 {[%emt 0:00:12]} (43... a3 $5) 44. Kd3 {[%emt 0:00:02]} Kc5 {[%emt 0:00:03]} 45. a3 {[%emt 0:00:04]} Kd5 {[%emt 0:00:01]} 46. c4+ {[%emt 0:00:01]} Kc5 {[%emt 0:00:03]} (46... Ke5 $5) 47. Kc3 {[%emt 0:00:04]} Kc6 {[%emt 0:00:03]} 48. Kd4 {[%emt 0:00:01]} Kd6 {[%emt 0:00:01]} 49. c5+ {[%emt 0:00:16]} Kc6 {[%emt 0:00:01]} 50. Kc4 {[%emt 0:00:02]} Kc7 {[%emt 0:00:04]} 51. Kd5 $2 {[%emt 0:00:01][%mdl 8192]} (51. Kc3 $11) 51... g4 $1 $19 {[%emt 0:00:04]} 52. Ke4 {[%emt 0:00:03] Never resign too early!   Weighted Error Value: White=0.87/Black=0.69} 0-1

[Event "Romanian Rapid Open 2022"]
[Site "Sebes"]
[Date "2022.12.02"]
[Round "2.38"]
[White "Calugareanu, Ioana-Denisa"]
[Black "Negrean, Andrei"]
[Result "1/2-1/2"]
[ECO "E17"]
[WhiteElo "1396"]
[BlackElo "1991"]
[Annotator "TA"]
[PlyCount "135"]
[EventDate "2022.12.02"]
[EventType "rapid"]
[EventCountry "ROU"]
[SourceTitle "playchess.com"]
[Source "ChessBase"]
[SourceQuality "1"]
[TimeControl "600+5"]

{[%evp 18,135,-1,9,26,25,18,21,38,21,16,-8,-7,-22,-37,-32,-33,-41,-3,-41,-22,-33,-16,-21,-10,-11,0,0,0,0,0,-6,-6,-8,-11,-20,-16,-19,0,-22,-15,-14,-11,-17,-7,-11,0,-4,0,-13,-8,-12,0,-47,29,29,53,58,456,138,106,61,63,0,97,0,53,0,327,339,335,320,331,318,310,318,264,187,210,126,125,15,8,8,41,8,9,8,117,111,575,609,594,613,1287,1274,1892,1237,29971,29973,29972,29974,29974,29974,29972,29971,29964,0,12798,0,12595,0,6964,0,5389,0,5057,0,5061,0]} 1. d4 {[%emt 0:00:01]} Nf6 {[%emt 0:10:10]} 2. c4 {[%emt 0:10:14]} e6 {[%emt 0:00:00]} 3. Nf3 {[%emt 0:00:00]} d5 {[%emt 0:00:00]} 4. Nbd2 {[%emt 0:00:00]} b6 {[%emt 0:00:00]} 5. g3 {[%emt 0:00:00]} Bb7 {[%emt 0:00:00]} 6. Bg2 {[%emt 0:00:00]} Be7 {[%emt 0:00:00]} 7. O-O {[%emt 0:00:00]} O-O {[%emt 0:00:00]} 8. b3 {[%emt 0:00:00]} Nbd7 {[%emt 0:00:00] 8...c5 gains popularity.} 9. Bb2 {[%emt 0:00:00]} c5 {[%emt 0:00:00]} 10. e3 {[%emt 0:00:00]} cxd4 {[%emt 0:00:00] E17: Queen's Indian: 4 g3 Bb7 5 Bg2 Be7.} 11. Nxd4 {[%emt 0:00:00]} Nc5 {[%emt 0:00:00] [#]} 12. cxd5 $146 {[%emt 0:00:00]} ({Predecessor:} 12. Rc1 Nd3 13. Rb1 Nxb2 14. Rxb2 Rc8 15. Qe2 Qd7 16. Rd1 Rfd8 17. Rbb1 dxc4 18. Bxb7 Qxb7 19. Nxc4 {0-1 (42) Parasics,G (1248)-Kovacs,T (1567) Szolnok 2022}) 12... Bxd5 {[%emt 0:00:00] The position is equal.} 13. Bxd5 {[%emt 0:00:00]} Qxd5 {[%emt 0:00:00]} 14. Qf3 {[%emt 0:00:00]} Rac8 {[%emt 0:00:00]} 15. Qxd5 {[%emt 0:00:00]} Nxd5 {[%emt 0:00:00]} 16. Ba3 {[%emt 0:00:00]} Bf6 {[%emt 0:00:00]} 17. N2f3 {[%emt 0:00:00]} g5 {[%emt 0:00:00]} 18. g4 {[%emt 0:00:00]} (18. e4 $5 {[%cal Re4d5]}) 18... Rfd8 {[%emt 0:00:00]} 19. Rac1 {[%emt 0:00:00]} h5 {[%emt 0:00:07]} 20. h3 {[%emt 0:00:00]} hxg4 {[%emt 0:00:01]} 21. hxg4 {[%emt 0:00:00]} Nd3 {[%emt 0:00:31]} 22. Rxc8 {[%emt 0:00:00]} Rxc8 {[%emt 0:00:01]} 23. Rd1 {[%emt 0:00:00]} N3b4 {[%emt 0:00:05]} 24. Bxb4 {[%emt 0:00:00]} Nxb4 {[%emt 0:00:01]} 25. a3 {[%emt 0:00:00]} Nd5 {[%emt 0:00:11]} 26. Nb5 {[%emt 0:00:00]} a6 {[%emt 0:00:04]} 27. Nd6 {[%emt 0:00:00]} Rc3 {[%emt 0:00:46]} 28. Rb1 {[%emt 0:00:00]} Be7 {[%emt 0:00:18]} 29. Ne4 {[%emt 0:00:00][%csl LRc3,LRg5]} Rc2 {[%emt 0:00:01]} 30. Nd4 {[%emt 0:00:00] Prevents b5.} Rc7 {[%emt 0:00:06]} 31. a4 {[%emt 0:00:00]} Kg7 {[%emt 0:00:07]} 32. Kg2 {[%emt 0:00:00]} Kg6 {[%emt 0:00:02]} 33. Kg3 {[%emt 0:00:00]} Rc8 {[%emt 0:00:05]} 34. Nf3 {[%emt 0:00:00]} f6 {[%emt 0:00:02]} 35. Nd4 {[%emt 0:00:00]} (35. Rd1 $11 {is superior.}) 35... Kf7 {[%emt 0:00:05]} (35... f5 $15 36. Nd2 f4+ 37. exf4 Nxf4) 36. Rh1 $11 {[%emt 0:00:00]} e5 {[%emt 0:00:12]} 37. Nf5 {[%emt 0:00:00]} Rc2 $2 {[%emt 0:00:06][%mdl 8192] [#]} (37... Rc7 $14) 38. Rh7+ $2 {[%emt 0:00:00]} (38. Rd1 $1 $18 {is the precise move to win.}) 38... Ke6 $16 {[%emt 0:00:05]} 39. Ng7+ {[%emt 0:00:14] Pair of Knights!} Kd7 {[%emt 0:00:01]} 40. Nf5 {[%emt 0:00:06][%cal Oe4f6] Hoping for Nxf6+!} (40. Kf3 $5 {[%cal Rg7f5]}) 40... Ke6 {[%emt 0:00:00]} 41. Ng7+ {[%emt 0:00:01]} Kd7 $1 {[%emt 0:00:02]} 42. Nf5 {[%emt 0:00:01]} (42. Kf3 $14) 42... Rb2 $2 {[%emt 0:00:09][%mdl 8192] [#]} (42... Ke6 $11 {and Black is okay.}) 43. Nxf6+ $1 $18 {[%emt 0:00:20][%mdl 512]} Nxf6 {[%emt 0:00:03]} 44. Rxe7+ {[%emt 0:00:01][%mdl 4096] Endgame KRN-KRN} Kd8 {[%emt 0:00:02]} 45. Rxe5 {[%emt 0:00:08]} Rxb3 {[%emt 0:00:27]} 46. Re6 {[%emt 0:00:05]} Nd7 {[%emt 0:00:00]} 47. Rd6 {[%emt 0:00:10]} Kc7 {[%emt 0:00:00]} 48. Rd4 {[%emt 0:00:03]} Ra3 {[%emt 0:00:00]} 49. Ne7 {[%emt 0:00:33]} (49. f4 $16 gxf4+ 50. Kxf4) 49... Nc5 $11 {[%emt 0:00:00]} 50. Nd5+ {[%emt 0:00:01]} Kb7 {[%emt 0:00:09]} 51. Rb4 {[%emt 0:00:04]} (51. Kh2 $5 {[%cal Rf2f4]}) 51... Nxa4 {[%emt 0:00:01]} 52. f4 {[%emt 0:00:07]} gxf4+ {[%emt 0:00:01]} (52... a5 $11 {remains equal.} 53. Rc4 Rd3) 53. Kxf4 $16 {[%emt 0:00:01] Black must now prevent g5.} ({But not} 53. Rxf4 $6 Nc5 $11) 53... b5 $2 {[%emt 0:00:05][%mdl 8192]} (53... Kc6 $16 {is more resistant.} 54. Rd4 Nc5) 54. g5 $18 {[%emt 0:00:01][%cal Bg4g5,Bg5g6][%mdl 32]} Ra1 {[%emt 0:00:03]} 55. Kf5 {[%emt 0:00:11]} Nc5 {[%emt 0:00:08]} 56. g6 {[%emt 0:00:10] Threatening mate with g7.} Rg1 {[%emt 0:00:04] Inhibits g7.} 57. Rg4 {[%emt 0:00:01]} Rxg4 {[%emt 0:00:07]} 58. Kxg4 {[%emt 0:00:01] KN-KN} Ne6 {[%emt 0:00:03]} 59. Kf5 {[%emt 0:00:04]} Ng7+ {[%emt 0:00:04]} 60. Kf6 {[%emt 0:00:02]} Nh5+ {[%emt 0:00:01]} 61. Kg5 {[%emt 0:00:01]} Ng7 {[%emt 0:00:01]} 62. Kf6 {[%emt 0:00:02]} (62. e4 $142 Ne8 63. Nf6 Ng7 64. Kh6 Ne6 65. Nd5 Kc6 {[#]} 66. Nf4 $1 {[%mdl 512]} Nxf4 67. g7) 62... Nh5+ {[%emt 0:00:38]} 63. Kg5 {[%emt 0:02:37]} Ng7 {[%emt 0:00:00]} 64. Kf6 {[%emt 0:00:00]} Nh5+ {[%emt 0:00:00]} 65. Kg5 {[%emt 0:00:00]} Ng7 {[%emt 0:00:00]} 66. Kf6 {[%emt 0:00:00]} Nh5+ {[%emt 0:00:00]} 67. Kg5 {[%emt 0:00:00]} Ng7 {[%emt 0:00:00]} 68. Kf6 $2 {[%emt 0:00:00] Weighted Error Value: White=0.26 (precise) /Black=0.64} (68. e4 $18 Ne8 69. Nf6) 1/2-1/2

[Event "Romanian Rapid Open 2022"]
[Site "Sebes"]
[Date "2022.12.02"]
[Round "2.39"]
[White "Tamas, Christian-Arrydan"]
[Black "Bichis, Tudor"]
[Result "1-0"]
[ECO "A18"]
[WhiteElo "1917"]
[BlackElo "1145"]
[Annotator "TA"]
[PlyCount "55"]
[EventDate "2022.12.02"]
[EventType "rapid"]
[EventCountry "ROU"]
[SourceTitle "playchess.com"]
[Source "ChessBase"]
[SourceQuality "1"]
[TimeControl "600+5"]

{[%evp 10,54,72,42,63,64,79,72,80,54,54,50,64,51,281,283,302,290,289,282,293,304,293,275,320,270,255,235,236,216,409,406,548,542,466,489,520,439,29989,29989,29989,29990,29994,29995,29995,29996,29999]} 1. d4 {[%emt 0:00:01]} Nf6 {[%emt 0:00:02]} 2. c4 {[%emt 0:00:02]} e6 {[%emt 0:00:03]} 3. Nc3 {[%emt 0:00:01]} Be7 {[%emt 0:00:04]} 4. e4 {[%emt 0:00:04]} O-O {[%emt 0:00:08]} 5. Nf3 {[%emt 0:00:02]} d6 {[%emt 0:00:06][%cal Bd7d6,Bd6d5][%mdl 32]} 6. Be2 {[%emt 0:00:02] White is more active.} Nbd7 {[%emt 0:00:08] A18: English Opening: Flohr-Mikenas System (1 c4 Nf6 2 Nc3 e6 3 e4).} 7. O-O {[%emt 0:00:04]} b6 {[%emt 0:00:17]} 8. Qc2 {[%emt 0:00:07]} Bb7 {[%emt 0:00:05] White is better.} 9. h3 {[%emt 0:00:09] [#]} d5 $146 {[%emt 0:00:32][%cal Rd5e4]} ({Predecessor:} 9... e5 10. Be3 Re8 11. Rad1 Bf8 12. dxe5 Nxe5 13. Nxe5 Rxe5 14. Bd4 Re8 15. f3 Nd7 {1-0 (55) Samaganova,A (1993)-Vo,T (2335) Chess.com INT 2021}) 10. e5 {[%emt 0:00:15]} Ne4 {[%emt 0:00:08]} 11. Bd3 $36 {[%emt 0:02:21][%cal Be2d3,Bd3h7,Bh7f5][%mdl 2080] aiming for cxd5. White has good play.} Ng5 $2 {[%emt 0:01:32]} (11... f5 $14) 12. Nxg5 $18 {[%emt 0:00:05]} Bxg5 {[%emt 0:00:03]} 13. Bxh7+ {[%emt 0:00:51]} Kh8 {[%emt 0:00:02]} 14. cxd5 {[%emt 0:00:13]} exd5 {[%emt 0:00:32]} 15. Bf5 {[%emt 0:00:17]} Bxc1 {[%emt 0:00:18]} 16. Raxc1 {[%emt 0:00:02]} ({Much less strong is} 16. Qxc1 $6 c6 17. Qf4 Re8 $18) 16... c5 {[%emt 0:00:05]} 17. Qe2 {[%emt 0:00:46] [#] White wants to mate with Qh5+.} g6 {[%emt 0:00:17] Inhibits Qh5+.} 18. Bxd7 {[%emt 0:00:04]} Qxd7 {[%emt 0:00:05]} 19. Qd2 {[%emt 0:00:01]} Qf5 $2 {[%emt 0:00:27]} (19... Kg8 {might work better.} 20. Rcd1 Rfd8) 20. Nb5 {[%emt 0:00:52]} Ba6 {[%emt 0:00:43]} 21. Nd6 {[%emt 0:00:25]} Qe6 {[%emt 0:00:12]} 22. Rfe1 {[%emt 0:00:03]} ({Not} 22. Qh6+ Kg8 23. Rfd1 Rad8 $18) 22... cxd4 {[%emt 0:00:19]} 23. Qxd4 {[%emt 0:00:01] Black must now prevent Rc7.} f6 {[%emt 0:00:18]} (23... Rad8 $18 24. Qa4 Bc4) 24. Rc7 {[%emt 0:00:33] White mates.} g5 {[%emt 0:00:45]} 25. Qd1 {[%emt 0:00:53]} g4 {[%emt 0:00:45]} 26. Qd2 {[%emt 0:00:54]} fxe5 {[%emt 0:00:15] [#]} 27. Qg5 $1 {[%emt 0:00:04][%csl Gc7,LRe5,LRg4][%cal Rg5g7]} Rf6 {[%emt 0:00:31]} (27... Rf7 28. Nxf7+) 28. Qg7# {[%emt 0:00:02] Black did not feel at home in the position after the opening.   Weighted Error Value: White=0.06 (flawless) /Black=0.84} 1-0